bitfinex-derivatives/quotes_SOLF0:USTF0_20250516
["timestamp","ask_amount","ask_price","bid_price","bid_amount"]
[1747399146976,68.0817,172.89,172.87,5.7821]
[1747399147679,62.3,172.89,172.87,5.7821]
[1747399148283,62.3,172.89,172.82,62.3]
[1747399148981,62.3,172.89,172.85,5.7828]
[1747399149183,62.3,172.89,172.82,62.3]
[1747399149374,62.3,172.89,172.81,62.34]
[1747399151375,5.7808,172.92,172.81,73.908]
[1747399151575,124.58,172.93,172.81,73.908]
[1747399151877,5.7816,172.9,172.87,5.7822]
[1747399152381,5.7818,172.89,172.86,5.7825]
[1747399152778,62.3,172.89,172.79,12.65219384]
[1747399152977,5.7825,172.87,172.84,5.7831]
[1747399153283,124.58,172.89,172.8,62.28]
[1747399153787,130.3619,172.89,172.86,5.7824]
[1747399155387,62.3,172.89,172.88,5.782]
[1747399155891,68.0806,172.93,172.9,5.7811]
[1747399156185,130.3606,172.93,172.9,5.7811]
[1747399156485,124.58,172.93,172.85,1.861]
[1747399157785,124.58,172.93,172.86,5.7824]
[1747399158088,124.58,172.93,172.85,1.861]
[1747399160185,124.58,172.93,172.83,62.3]
[1747399160387,5.7822,172.88,172.85,5.7829]
[1747399160784,124.56,172.89,172.8,1.9332]
[1747399161177,124.56,172.89,172.79,62.3]
[1747399161586,124.56,172.89,172.78,1.9856]
[1747399162277,5.7837,172.83,172.8,5.7846]
[1747399162688,124.56,172.84,172.78,1.9856]
[1747399163582,124.56,172.84,172.82,5.7838]
[1747399163993,124.56,172.84,172.81,5.7841]
[1747399164187,124.56,172.84,172.78,1.9856]
[1747399164578,130.3434,172.84,172.78,1.9856]
[1747399165392,124.56,172.84,172.82,5.7837]
[1747399165991,124.56,172.84,172.83,5.7836]
[1747399166683,124.56,172.84,172.76,64.1932]
[1747399167188,124.56,172.84,172.82,5.7837]
[1747399167387,124.56,172.84,172.76,64.1932]
[1747399167788,124.56,172.84,172.82,5.7838]
[1747399168100,124.56,172.84,172.76,64.1932]
[1747399168489,62.26,172.84,172.83,5.7836]
[1747399168683,5.7824,172.87,172.76,64.1932]
[1747399169184,62.24,172.88,172.76,64.1932]
[1747399169392,62.24,172.88,172.8,6.7747707]
[1747399169593,62.24,172.88,172.87,5.7823]
[1747399171185,62.26,172.92,172.83,6.7747707]
[1747399171391,62.26,172.92,172.84,1.9175]
[1747399172207,62.26,172.92,172.91,5.781]
[1747399172905,561.88,172.96,172.92,5.7804]
[1747399173090,1.8659,172.98,172.85,135.33555747]
[1747399173295,5.7788,172.98,172.85,135.33555747]
[1747399173601,62.24,172.99,172.85,135.33555747]
[1747399173794,5.779,172.97,172.85,135.33555747]
[1747399174196,124.48,172.99,172.96,5.7793]
[1747399174400,5.7787,172.98,172.89,124.48]
[1747399174597,124.48,172.99,172.89,124.48]
[1747399174800,130.2586,172.99,172.95,5.7794]
[1747399174997,130.2586,172.99,172.9,3.7795]
[1747399175206,130.2586,172.99,172.91,3.99860712]
[1747399175396,130.2586,172.99,172.92,2.09130712]
[1747399175596,130.2586,172.99,172.93,2.09130712]
[1747399175904,635.78120906,173.04,172.94,2.09130712]
[1747399176102,124.48,173.03,172.95,2.09130712]
[1747399176312,124.48,173.03,172.96,2.09130712]
[1747399176510,124.48,173.03,172.97,2.09130712]
[1747399176714,124.48,173.03,172.98,2.09130712]
[1747399176906,5.7773,173.02,172.99,2.09130712]
[1747399177107,5.7773,173.02,173.0,2.09130712]
[1747399177308,5.7773,173.02,173.01,2.09130712]
[1747399177508,124.48,173.03,173.01,2.09130712]
[1747399177710,124.48,173.03,173.02,2.09130712]
[1747399178014,130.2571,173.03,173.02,2.09130712]
[1747399178615,62.24,173.03,173.02,2.09130712]
[1747399179211,10.83555747,173.09,173.02,2.09130712]
[1747399179411,62.22,173.05,172.93,124.48]
[1747399179614,5.7768,173.04,173.0,5.7777]
[1747399179814,5.7768,173.04,173.01,2.08149758]
[1747399180112,62.22,173.05,173.02,2.08149758]
[1747399180313,62.22,173.05,173.0,5.7777]
[1747399180612,5.7767,173.04,173.01,2.08021243]
[1747399180809,5.7767,173.04,173.0,5.7777]
[1747399181009,5.7767,173.04,173.01,2.08021243]
[1747399181208,5.7767,173.04,173.0,5.7777]
[1747399181409,5.777,173.03,173.01,2.0802112]
[1747399181612,5.777,173.03,173.0,5.7777]
[1747399181817,5.777,173.03,173.01,2.07903753]
[1747399182016,5.7767,173.04,173.0,5.7777]
[1747399182214,62.22,173.05,173.01,2.07905154]
[1747399182418,62.22,173.05,173.0,5.7777]
[1747399182616,5.7767,173.04,173.01,2.07799435]
[1747399182916,5.7767,173.04,173.0,5.7777]
[1747399183106,5.7767,173.04,173.01,2.07799435]
[1747399183310,62.22,173.05,172.93,124.48]
[1747399183514,62.22,173.05,172.94,2.07798897]
[1747399183709,62.22,173.05,172.95,2.07798897]
[1747399183907,62.22,173.05,172.96,2.07798897]
[1747399184107,1.8945,173.04,172.97,2.07798897]
[1747399184311,1.8945,173.04,172.98,2.07798897]
[1747399184620,5.7778,173.01,172.97,5.7788]
[1747399184815,67.9578,173.01,172.97,5.7788]
[1747399186117,67.9578,173.01,172.98,2.07724187]
[1747399186318,62.18,173.01,172.98,5.7786]
[1747399186515,62.18,173.01,172.93,62.24]
[1747399186722,62.18,173.01,172.94,2.07688704]
[1747399186920,62.18,173.01,172.95,2.07688704]
[1747399187218,62.18,173.01,172.97,5.7789]
[1747399187420,62.18,173.01,172.98,2.07688704]
[1747399187620,62.18,173.01,172.99,2.07688704]
[1747399187819,62.18,173.01,173.0,2.07629]
[1747399188119,62.18,173.01,172.93,62.24]
[1747399188321,62.18,173.01,172.94,2.0767538]
[1747399188518,62.18,173.01,172.97,5.7788]
[1747399188724,62.18,173.01,172.93,62.24]
[1747399189016,62.18,173.01,172.94,2.07673371]
[1747399189220,62.18,173.01,172.95,2.07683237]
[1747399189419,62.18,173.01,172.91,1.9073]
[1747399189617,73.01555747,173.01,172.92,2.07714513]
[1747399189817,5.7803,172.93,172.9,5.7812]
[1747399190122,5.7803,172.93,172.91,2.07849322]
[1747399190317,5.7803,172.93,172.92,2.07849322]
[1747399190916,67.9401,172.94,172.92,2.07849322]
[1747399191122,67.9401,172.94,172.91,5.7808]
[1747399191321,67.9401,172.94,172.92,2.07864681]
[1747399191523,67.9401,172.94,172.91,5.7808]
[1747399191722,67.9401,172.94,172.92,2.07876088]
[1747399191923,67.9401,172.94,172.91,5.7808]
[1747399192124,67.9401,172.94,172.92,2.07876088]
[1747399192325,67.9401,172.94,172.91,5.7808]
[1747399192620,67.9401,172.94,172.92,2.07900063]
[1747399192825,67.9401,172.94,172.91,5.7808]
[1747399193023,67.9401,172.94,172.92,2.07888156]
[1747399193223,67.9401,172.94,172.91,5.7808]
[1747399193424,67.9401,172.94,172.92,2.07886757]
[1747399193623,67.9401,172.94,172.91,5.7808]
[1747399193831,67.9401,172.94,172.92,2.07900588]
[1747399194020,5.7804,172.93,172.9,5.7812]
[1747399194227,5.7804,172.93,172.91,2.07898391]
[1747399194423,5.7804,172.93,172.92,2.07898391]
[1747399194629,67.9401,172.94,172.92,2.07898391]
[1747399194923,67.9401,172.94,172.91,5.781]
[1747399195229,67.9401,172.94,172.86,62.2]
[1747399195230,62.16,172.94,172.93,5.7803]
[1747399195423,5.7795,172.96,172.93,7.85929219]
[1747399195728,5.7795,172.96,172.93,5.7803]
[1747399195928,62.22,172.99,172.89,6.76988298]
[1747399196229,62.16,172.98,172.9,68.00163976]
[1747399196427,67.9389,172.98,172.95,5.7795]
[1747399197526,62.16,172.98,172.95,5.7795]
[1747399197829,62.16,172.98,172.93,5.78]
[1747399198032,62.16,172.98,172.86,62.14]
[1747399198232,62.16,172.98,172.87,2.07919448]
[1747399198433,5.7801,172.94,172.91,5.7808]
[1747399198634,5.7801,172.94,172.92,2.07919448]
[1747399198823,5.7801,172.94,172.93,2.07919448]
[1747399199023,5.7801,172.94,172.91,5.7808]
[1747399199228,5.7801,172.94,172.92,2.07966221]
[1747399199533,5.7801,172.94,172.93,2.0796403]
[1747399200434,62.16,172.98,172.93,2.0796403]
[1747399200635,62.16,172.98,172.86,62.14]
[1747399200834,62.16,172.98,172.87,2.07949911]
[1747399201136,62.14,172.97,172.88,2.07949911]
[1747399201333,62.14,172.97,172.89,2.07949911]
[1747399201632,62.14,172.97,172.86,62.14]
[1747399201633,5.7793,172.97,172.9,2.07949911]
[1747399201934,62.14,172.98,172.91,2.07949911]
[1747399202129,5.7796,172.96,172.93,5.7801]
[1747399202735,5.7798,172.95,172.92,5.7806]
[1747399202934,62.14,172.98,172.93,2.07972646]
[1747399203230,62.14,172.98,172.86,62.14]
[1747399203434,5.7798,172.95,172.91,5.7808]
[1747399203626,5.7798,172.95,172.87,2.07984191]
[1747399203627,5.7798,172.95,172.92,2.07984191]
[1747399203826,5.7798,172.95,172.93,2.07984191]
[1747399204030,5.7801,172.94,172.86,62.14]
[1747399204335,5.7801,172.94,172.87,2.07949647]
[1747399204529,5.7801,172.94,172.91,5.7808]
[1747399204727,5.7801,172.94,172.92,2.07949647]
[1747399204928,5.7799,172.95,172.93,2.07949647]
[1747399205134,5.7799,172.95,172.92,5.7806]
[1747399205333,5.7799,172.95,172.93,2.0793301]
[1747399205534,5.7799,172.95,172.92,5.7806]
[1747399205828,62.14,172.99,172.93,2.07962971]
[1747399206027,124.26,172.99,172.94,2.07943157]
[1747399206227,124.26,172.99,172.95,2.07943157]
[1747399206435,62.14,172.99,172.98,5.7787]
[1747399206635,67.8979,173.01,172.98,5.7787]
[1747399207327,5.7779,173.01,172.98,5.7787]
[1747399208040,62.14,173.03,172.94,62.14]
[1747399208238,62.14,173.03,172.95,2.07884973]
[1747399208440,62.14,173.03,172.96,2.07884973]
[1747399208640,67.917,173.03,173.0,5.7778]
[1747399208835,62.14,173.03,172.94,62.14]
[1747399209036,1.9531,173.1,172.95,2.07814156]
[1747399209240,62.12,173.06,172.96,2.07814156]
[1747399209541,141.73358987,173.05,173.02,5.7773]
[1747399210440,135.95708987,173.05,173.01,5.7776]
[1747399210639,135.95708987,173.05,173.02,2.0794374]
[1747399210838,135.95708987,173.05,173.01,5.7776]
[1747399211040,135.95708987,173.05,173.02,2.0794128]
[1747399211239,135.95708987,173.05,173.01,5.7776]
[1747399211439,135.95708987,173.05,173.02,2.07951491]
[1747399211636,135.95708987,173.05,173.01,5.7776]
[1747399211840,135.95708987,173.05,173.02,2.08024201]
[1747399212041,135.95708987,173.05,172.94,62.14]
[1747399212237,5.7776,173.02,172.95,2.08043351]
[1747399212435,135.95708987,173.05,172.96,2.08043351]
[1747399212641,62.1,173.02,172.97,2.08043351]
[1747399212841,5.7783,173.0,172.98,2.08043351]
[1747399213141,5.7783,173.0,172.99,2.08043351]
[1747399213342,5.7779,173.01,172.99,2.08043351]
[1747399213543,5.7779,173.01,173.0,2.08043351]
[1747399214544,67.8775,173.02,173.0,2.08043351]
[1747399214842,67.8775,173.02,173.01,2.08382625]
[1747399215245,62.1,173.02,173.01,2.08382625]
[1747399215544,62.1,173.02,173.01,2.08445338]
[1747399216243,67.8774,173.02,173.01,2.08445338]
[1747399216845,5.7774,173.02,173.01,2.08445338]
[1747399217041,5.7771,173.03,173.01,2.08445338]
[1747399217242,5.7771,173.03,173.02,2.08445338]
[1747399218044,198.03708987,173.05,173.02,2.08445338]
[1747399218245,135.95708987,173.05,173.03,2.08445338]
[1747399218448,135.95708987,173.05,173.04,2.08445338]
[1747399219147,499.54,173.11,173.04,2.08445338]
[1747399219345,5.7755,173.08,173.05,7.85957652]
[1747399219545,5.7755,173.08,173.06,2.08327652]
[1747399219841,67.8946,173.11,173.07,2.08327652]
[1747399220046,124.18,173.12,173.08,2.08327652]
[1747399220243,124.18,173.12,173.09,2.08327652]
[1747399220448,124.18,173.12,173.02,62.12]
[1747399220649,124.18,173.12,173.03,2.08094505]
[1747399220846,124.18,173.12,173.04,2.08094505]
[1747399221147,124.18,173.12,173.05,2.08094505]
[1747399221352,124.18,173.12,173.06,2.08094505]
[1747399221543,124.18,173.12,173.07,2.08094505]
[1747399221744,124.18,173.12,173.08,2.08094505]
[1747399221949,1.9492,173.15,173.09,2.07997563]
[1747399222248,62.12,173.16,173.05,62.06]
[1747399222449,62.04,173.15,173.06,2.07967824]
[1747399222748,68.80014535,173.15,173.07,2.07967824]
[1747399222950,68.80014535,173.15,173.08,2.07967824]
[1747399223148,68.80014535,173.15,173.09,2.07967824]
[1747399223350,5.7746,173.11,173.05,62.06]
[1747399223543,68.80014535,173.15,173.06,2.07855987]
[1747399223844,68.80014535,173.15,173.07,2.07855987]
[1747399224051,68.80014535,173.15,173.02,62.12]
[1747399224244,68.80014535,173.15,173.03,2.07830525]
[1747399224444,68.80014535,173.15,173.04,2.07830525]
[1747399224648,68.80014535,173.15,173.05,2.07830525]
[1747399224850,68.80014535,173.15,173.06,2.07830525]
[1747399225054,68.80014535,173.15,173.03,5.7768]
[1747399225354,68.80014535,173.15,173.04,2.07810479]
[1747399225650,124.12,173.14,173.05,2.07810479]
[1747399225841,124.12,173.14,173.06,2.07810479]
[1747399226048,6.76014535,173.12,172.98,10.62284535]
[1747399226353,5.7769,173.04,173.0,2.07807149]
[1747399226552,5.7769,173.04,173.01,2.07807149]
[1747399226755,5.7769,173.04,173.02,2.07807149]
[1747399226947,5.7769,173.04,173.03,2.07828986]
[1747399227254,5.7765,173.05,173.03,2.07828986]
[1747399227553,62.02,173.06,172.98,65.9627]
[1747399227756,5.7777,173.01,173.0,2.0783711]
[1747399228860,62.02,173.02,173.0,2.07941993]
[1747399229049,62.02,173.02,172.94,63.9311]
[1747399229247,5.7778,173.01,172.95,2.07964545]
[1747399229451,62.02,173.02,172.96,7.85884545]
[1747399229650,62.02,173.02,172.97,2.07964545]
[1747399229848,62.02,173.02,172.98,2.07964545]
[1747399230054,62.02,173.02,172.99,2.08007704]
[1747399230253,62.02,173.02,172.94,63.9311]
[1747399230455,62.02,173.02,172.95,7.85971318]
[1747399230657,62.02,173.02,172.96,2.08001318]
[1747399230955,62.0,173.01,172.97,2.08001318]
[1747399231158,499.3,173.08,172.98,2.08001318]
[1747399231357,124.0,173.07,172.99,7.85831318]
[1747399231556,124.0,173.07,173.0,2.08001318]
[1747399231757,124.0,173.07,173.01,2.08001318]
[1747399231952,5.7775,173.02,172.99,5.7783]
[1747399232149,5.7775,173.02,173.0,2.07943521]
[1747399232354,124.02,173.03,173.01,2.07943521]
[1747399232557,129.7972,173.03,172.99,5.7782]
[1747399232756,124.02,173.03,172.94,63.9311]
[1747399233064,124.02,173.03,172.95,5.7794]
[1747399233857,124.02,173.03,172.94,5.78]
[1747399234255,124.02,173.03,172.95,5.7795]
[1747399234451,124.02,173.03,172.93,1.8867]
[1747399234860,5.7782,173.0,172.93,1.8867]
[1747399235160,62.0,172.99,172.94,2.07947786]
[1747399235361,67.7784,172.99,172.95,2.07947786]
[1747399235562,62.0,172.99,172.96,2.07947786]
[1747399235761,62.0,172.99,172.97,2.07947786]
[1747399235964,67.7784,172.99,172.98,2.07947786]
[1747399237363,62.0,173.02,172.98,7.85817786]
[1747399237567,62.02,173.04,172.99,2.07947786]
[1747399237861,129.7967,173.04,173.0,2.07985781]
[1747399238064,129.7967,173.04,173.01,2.07985781]
[1747399238264,129.7967,173.04,173.02,2.07985781]
[1747399238466,129.7967,173.04,172.94,62.02]
[1747399238667,129.7967,173.04,172.95,2.07974673]
[1747399238872,129.7967,173.04,172.96,2.07974673]
[1747399239167,61.98,173.09,172.97,74.88533112]
[1747399239357,61.98,173.09,172.98,67.99584673]
[1747399239558,67.7551,173.09,173.06,5.7758]
[1747399239760,61.98,173.09,172.98,65.9161]
[1747399239967,61.98,173.09,173.01,61.98]
[1747399240173,67.755,173.09,173.02,2.07851861]
[1747399240375,61.98,173.09,173.03,2.07851861]
[1747399240576,62.02,173.1,173.04,2.07851861]
[1747399240767,67.7541,173.12,173.05,2.07851861]
[1747399240969,5.7741,173.12,173.06,2.07851861]
[1747399241167,5.7741,173.12,173.02,62.02]
[1747399241168,5.7741,173.12,173.07,2.07851861]
[1747399241462,5.7741,173.12,173.08,2.07851861]
[1747399241666,62.02,173.14,173.02,62.02]
[1747399241862,61.98,173.13,173.03,2.0783857]
[1747399242072,67.7538,173.13,173.09,5.7748]
[1747399242268,67.7538,173.13,173.1,2.0783857]
[1747399242472,67.7538,173.13,173.11,2.0783857]
[1747399242673,5.7738,173.13,173.06,62.02]
[1747399242874,62.02,173.14,173.07,2.07846065]
[1747399243070,62.02,173.14,173.08,2.07846065]
[1747399243270,10.82558439,173.13,172.98,62.02]
[1747399243475,12.64028439,173.13,172.98,62.02]
[1747399243874,5.7762,173.06,173.02,5.7771]
[1747399244069,61.96,173.08,172.98,62.02]
[1747399244269,5.776,173.07,173.03,5.7767]
[1747399245376,5.776,173.07,173.04,5.7766]
[1747399245971,61.96,173.08,172.98,62.02]
[1747399247377,1.8147,173.13,172.98,72.84558439]
[1747399247575,62.0,173.12,172.98,72.84558439]
[1747399247775,5.7747,173.1,173.07,5.7755]
[1747399247977,123.94,173.12,173.02,123.94]
[1747399248174,123.94,173.12,173.03,5.6545]
[1747399248380,499.4,173.17,173.03,5.6545]
[1747399248578,62.0,173.14,173.03,5.6545]
[1747399248977,62.0,173.14,173.09,5.7748]
[1747399249178,62.0,173.14,173.03,5.6545]
[1747399249478,62.0,173.14,173.06,5.7758]
[1747399249682,62.0,173.14,173.03,5.6545]
[1747399250281,62.0,173.14,173.03,1.826]
[1747399250682,62.0,173.14,173.05,5.7763]
[1747399251382,62.0,173.14,173.04,5.7766]
[1747399251777,62.0,173.14,173.03,1.826]
[1747399251977,5.7762,173.06,173.02,62.0]
[1747399252382,5.7762,173.06,172.99,61.92]
[1747399252587,5.7764,173.05,173.02,5.7771]
[1747399253479,5.7761,173.06,173.03,5.777]
[1747399253886,123.92,173.08,172.99,61.92]
[1747399254087,123.92,173.08,173.05,5.7761]
[1747399254279,62.0,173.08,172.99,61.92]
[1747399254476,61.9,173.09,173.07,5.7757]
[1747399254681,61.9,173.09,173.02,62.0]
[1747399254882,123.9,173.14,173.03,65.6594]
[1747399255180,123.9,173.14,173.04,1.8935]
[1747399255686,5.7742,173.12,173.04,1.8935]
[1747399255886,123.9,173.14,173.04,1.8935]
[1747399256591,5.774,173.13,173.04,1.8935]
[1747399257286,62.0,173.14,173.04,1.8935]
[1747399257287,67.7735,173.14,173.04,1.8935]
[1747399257684,67.7735,173.14,173.11,5.7743]
[1747399258088,5.7738,173.13,173.1,5.7745]
[1747399258490,5.7738,173.13,173.04,1.8935]
[1747399259093,62.0,173.14,173.04,1.8935]
[1747399259593,67.7734,173.14,173.11,5.7741]
[1747399260392,67.7734,173.14,173.12,5.7739]
[1747399260593,67.7734,173.14,173.04,1.8935]
[1747399261092,62.0,173.14,173.04,1.8935]
[1747399261892,1.9448,173.18,173.04,1.8935]
[1747399262095,123.76,173.18,173.06,10.82558439]
[1747399262296,61.88,173.18,173.07,123.76]
[1747399262689,61.88,173.19,173.07,123.76]
[1747399262889,67.6519,173.19,173.16,5.7724]
[1747399263401,5.7719,173.19,173.16,5.7724]
[1747399263695,5.7721,173.18,173.15,5.7729]
[1747399263897,61.86,173.19,173.07,123.76]
[1747399264094,61.88,173.18,173.07,123.76]
[1747399265298,5.7727,173.16,173.07,123.76]
[1747399265799,5.7727,173.16,173.13,5.7734]
[1747399266002,5.7732,173.15,173.07,123.76]
[1747399266199,61.88,173.18,173.07,123.76]
[1747399266602,5.7729,173.16,173.07,123.76]
[1747399266798,61.88,173.18,173.07,123.76]
[1747399266997,63.8073,173.18,173.07,123.76]
[1747399267198,5.7738,173.13,173.07,123.76]
[1747399267398,5.7738,173.13,173.1,5.7745]
[1747399267598,5.7738,173.13,173.07,123.76]
[1747399267599,61.86,173.14,173.07,123.76]
[1747399267799,5.7742,173.12,173.07,123.76]
[1747399268100,61.86,173.14,173.07,123.76]
[1747399268700,61.86,173.14,173.09,5.7748]
[1747399269000,61.86,173.14,173.07,123.76]
[1747399269201,61.86,173.14,173.04,1.8935]
[1747399269500,5.7746,173.11,173.08,5.7752]
[1747399269702,61.86,173.14,173.04,1.8935]
[1747399269998,10.82558439,173.1,172.94,61.86]
[1747399270204,128.0314,173.09,172.94,61.86]
[1747399270595,5.7772,173.03,172.94,61.86]
[1747399270897,67.6372,173.03,172.94,61.86]
[1747399271098,67.6372,173.03,173.0,5.778]
[1747399272006,61.86,173.03,172.94,61.86]
[1747399273207,61.86,173.03,172.95,5.7796]
[1747399273913,61.86,173.03,172.9,67.4573]
[1747399274102,10.82558439,173.02,172.9,63.7019]
[1747399274412,5.7796,172.96,172.92,5.7806]
[1747399274705,5.7796,172.96,172.86,65.5782]
[1747399274706,123.72,172.96,172.86,65.5782]
[1747399275605,129.4994,172.96,172.89,5.7817]
[1747399275907,123.72,172.96,172.86,61.88]
[1747399276108,123.72,172.96,172.82,63.7398]
[1747399276608,5.7812,172.91,172.87,5.7823]
[1747399276903,61.88,172.9,172.82,63.7398]
[1747399277409,61.88,172.9,172.87,5.7823]
[1747399277798,61.88,172.9,172.82,63.7398]
[1747399278000,61.88,172.9,172.89,5.7817]
[1747399281513,61.92,172.94,172.93,5.7802]
[1747399282611,61.92,172.94,172.86,61.92]
[1747399283013,61.86,172.95,172.86,61.92]
[1747399283014,4.2477,173.01,172.86,61.92]
[1747399283211,123.78,173.0,172.86,61.92]
[1747399283513,123.78,172.99,172.86,61.92]
[1747399283714,3.3987,173.01,172.87,10.82558439]
[1747399283910,63.7807,173.01,172.87,10.82558439]
[1747399284214,61.86,173.0,172.88,3.9104]
[1747399284515,61.86,173.0,172.89,61.86]
[1747399284715,123.78,173.03,172.91,10.82558439]
[1747399285215,123.78,173.04,172.91,10.82558439]
[1747399285714,129.5569,173.04,173.0,5.7777]
[1747399285915,123.78,173.04,172.95,123.78]
[1747399286415,123.78,173.04,173.01,5.7775]
[1747399288218,123.78,173.04,172.96,3.7838]
[1747399289017,5.7774,173.02,172.98,5.7786]
[1747399289214,123.78,173.04,172.98,5.7786]
[1747399290313,123.78,173.04,172.99,5.7782]
[1747399290516,123.78,173.04,172.96,3.7838]
[1747399292116,61.92,173.04,172.96,3.7838]
[1747399292710,5.7773,173.03,172.99,5.7781]
[1747399293417,61.92,173.04,172.98,5.7786]
[1747399293820,5.7776,173.02,172.99,5.7783]
[1747399294720,5.7777,173.01,172.98,5.7786]
[1747399295119,61.92,173.04,172.96,3.7838]
[1747399295315,61.92,173.04,173.0,5.778]
[1747399295521,61.92,173.04,172.96,3.7838]
[1747399295920,67.6967,173.04,173.01,5.7775]
[1747399296121,61.92,173.04,172.96,3.7838]
[1747399296330,61.82,173.07,172.96,3.7838]
[1747399296620,123.64,173.08,172.96,3.7838]
[1747399297121,123.64,173.08,173.03,5.777]
[1747399297422,123.64,173.08,172.96,3.7838]
[1747399297723,5.776,173.06,173.03,5.7768]
[1747399297912,61.82,173.08,172.99,123.62]
[1747399298120,61.82,173.08,173.0,1.8856]
[1747399298718,67.5956,173.08,173.06,5.776]
[1747399298919,61.82,173.08,173.06,5.776]
[1747399299323,67.5954,173.08,173.05,5.7762]
[1747399299620,67.5954,173.08,173.0,1.8856]
[1747399299621,61.82,173.08,173.0,1.8856]
[1747399299820,61.8,173.07,172.99,61.82]
[1747399300726,5.7765,173.05,173.02,5.7772]
[1747399302227,5.7767,173.04,173.01,5.7776]
[1747399302421,61.8,173.07,172.99,61.82]
[1747399302724,61.8,173.07,172.96,1.8686]
[1747399303019,1.8775,173.06,172.95,63.7817]
[1747399305123,1.8775,173.06,172.96,5.7791]
[1747399305326,1.8775,173.06,172.95,63.7817]
[1747399305728,5.7779,173.01,172.95,63.7817]
[1747399305929,123.6,173.02,172.95,63.7817]
[1747399306223,129.3776,173.02,172.99,5.7781]
[1747399306428,123.6,173.02,172.95,61.82]
[1747399306627,123.6,173.02,172.91,127.4184]
[1747399307131,5.778,173.0,172.97,5.7788]
[1747399307723,5.7784,172.99,172.96,5.7792]
[1747399308033,123.6,173.02,172.91,127.4184]
[1747399308231,5.7782,173.0,172.97,5.7788]
[1747399309135,5.7786,172.99,172.91,65.6384]
[1747399309338,123.6,173.02,172.91,65.6384]
[1747399310436,5.7784,172.99,172.95,5.7795]
[1747399310832,123.6,173.02,172.91,65.6384]
[1747399311040,123.6,173.02,172.9,1.9665]
[1747399313549,5.7777,173.01,172.98,5.7787]
[1747399313736,61.82,173.02,172.91,61.82]
[1747399313938,61.76,173.01,172.91,123.58]
[1747399314142,61.76,173.01,172.98,5.7785]
[1747399314346,61.76,173.01,172.91,123.58]
[1747399314647,5.7783,173.0,172.96,5.7792]
[1747399314840,61.76,173.01,172.91,123.58]
[1747399315149,5.7786,172.99,172.91,123.58]
[1747399315446,61.76,173.01,172.91,123.58]
[1747399315948,5.7788,172.98,172.95,5.7794]
[1747399316143,61.76,173.01,172.91,123.58]
[1747399316650,61.76,173.01,172.99,5.7782]
[1747399317151,61.76,173.01,172.91,123.58]
[1747399317543,5.7785,172.99,172.96,5.7792]
[1747399318049,61.76,173.01,172.96,5.7792]
[1747399318250,61.76,173.01,172.97,5.779]
[1747399318547,61.76,173.01,172.91,123.58]
[1747399318747,123.48,173.01,172.99,5.7782]
[1747399318950,123.48,173.01,172.91,123.58]
[1747399319655,1.8775,173.06,172.91,123.58]
[1747399319845,5.7772,173.03,173.0,5.7778]
[1747399320046,61.74,173.04,172.91,123.58]
[1747399320248,61.74,173.04,172.91,134.40558439]
[1747399320553,622.82,173.07,172.95,10.82558439]
[1747399320852,67.5158,173.07,173.04,5.7764]